Cogmind - Beta 13 @@@ ROGUE MODE // 2024.04.18 @ 19:40:22 Player: ILikeVoltron Result: Self-destructed Performance ------------- Evolutions (3) 1500 Regions Visited (4) 800 Robots Destroyed (59) 295 Value Destroyed (1527) 1527 Prototype IDs (0) 0 Alien Tech Used (0) 0 Bonus (8) 8 TOTAL SCORE: 4130 Bonus ------- High Alert Combat Kills 8 Cogmind --------- Core Integrity 537/700 Matter 272/300 Energy 290/290 System Corruption 0% Temperature Cool (9) Movement Rolling (145) Ox3 Location -7/Factory Parts ------- > --- POWER (1) -------- Improved Deuterium Engine > --- PROPULSION (4) --- Medium Treads Armored Huge Wheel > --- UTILITY (5) ------ Huge Storage Unit Structural Scanner Terrain Scan Processor Improved Melee Analysis Suite > --- WEAPON (3) ------- Remote Datajack Maul Scythe > --- INVENTORY (25) --- Improved Ion Engine Armored Treads Armored Treads Armored Treads Advanced Treads Advanced Treads Advanced Treads Advanced Treads Advanced Treads Advanced Treads Armored Huge Wheel Cesium-ion Thruster Cesium-ion Thruster Cesium-ion Thruster Cesium-ion Thruster Large Storage Unit High-capacity Matter Pod (200) High-capacity Matter Pod (200) Heavy Assault Rifle Heavy Assault Rifle Mini Grenade Launcher Peak State ------------ > --- POWER ------------ Light Nuclear Core > --- PROPULSION ------- Armored Huge Wheel Armored Huge Wheel > --- UTILITY ---------- Huge Storage Unit Structural Scanner Structural Scanner Terrain Scan Processor Improved Light Armor Plating > --- WEAPON ----------- Advanced Assault Cannon Scythe Scythe > --- INVENTORY -------- Improved Ion Engine Improved Ion Engine Armored Treads Armored Treads Armored Treads Advanced Treads Advanced Treads Advanced Treads Advanced Treads Advanced Treads Advanced Treads Armored Huge Wheel Cesium-ion Thruster Cesium-ion Thruster Cesium-ion Thruster Cesium-ion Thruster Large Storage Unit High-capacity Matter Pod High-capacity Matter Pod Light Armor Plating Heavy Assault Rifle Heavy Assault Rifle Mini Grenade Launcher Maul [Rating: 43] Favorites ----------- Power Improved Ion Engine Engine Improved Ion Engine Power Core Light Nuclear Core Propulsion Aluminum Leg Treads Advanced Treads Leg Aluminum Leg Wheel Armored Huge Wheel Hover Unit Airjet Utility Hardened Light Armor Plating Device Structural Scanner Storage Huge Storage Unit Processor Terrain Scan Processor Protection Hardened Light Armor Plating Weapon Scythe Energy Gun Small Laser Ballistic Gun Light Assault Rifle Ballistic Cannon Advanced Assault Cannon Launcher Rocket Launcher Special Weapon Remote Datajack Impact Weapon Maul Slashing Weapon Scythe Build | -11 -10 -9 -8 -7 ------- Run | Yrd Mat Mat Mat Fac Slots Evolved 6 | . . 2 2 2 Power . | . . . . . Propulsion 2 | . . 1 . 1 Utility 3 | . . 1 1 1 Weapon 1 | . . . 1 . Parts Attached 49 | . 8 14 14 13 Power 6 | . 1 2 1 2 Engine 5 | . 1 2 . 2 Core 1 | . . . 1 . Reactor . | . . . . . Propulsion 15 | . 2 5 4 4 Treads 5 | . . . 3 2 Leg 4 | . 2 2 . . Wheel 3 | . . . 1 2 Hover 3 | . . 3 . . Flight . | . . . . . Utility 16 | . 3 3 6 4 Device 3 | . . . 2 1 Storage 4 | . 2 1 1 . Processor 2 | . . . 1 1 Hackware . | . . . . . Protection 7 | . 1 2 2 2 Artifact . | . . . . . Weapon 12 | . 2 4 3 3 Energy Gun . | . . . . . Energy Cannon . | . . . . . Ballistic Gun 5 | . 2 3 . . Ballistic Cannon 1 | . . . . 1 Launcher 1 | . . . 1 . Special Weapon 1 | . . . . 1 Impact Weapon 2 | . . . 1 1 Slashing Weapon 2 | . . 1 1 . Piercing Weapon . | . . . . . Special Melee Weapon . | . . . . . Unidentified Prototypes . | . . . . . Parts Lost 14 | . 1 . 6 7 Power 1 | . . . . 1 Propulsion 2 | . . . 1 1 Utility 7 | . . . 4 3 Weapon 4 | . 1 . 1 2 Highest Loss Streak 3 | . 1 . 3 3 To Critical Strikes . | . . . . . Average Slot Usage (%) 93 | . 90 100 95 84 Engine 9 | . 14 11 7 1 Core 1 | . . . 1 4 Treads 6 | . . . 21 7 Leg 15 | . 28 25 . . Wheel 2 | . . . 1 10 Hover 2 | . . 7 1 . Device 4 | . . . 9 11 Storage 10 | . 14 11 9 7 Processor 2 | . . . 1 8 Protection 12 | . 5 22 14 7 Energy Gun 1 | . 6 . . . Ballistic Gun 12 | . 21 20 1 . Launcher 1 | . . . 5 . Impact Weapon 3 | . . . 8 6 Slashing Weapon 5 | . . 1 10 12 Naked Turns . | . . . . . Heaviest Build 104 | 10 33 40 104 102 Greatest Support 86 | 20 20 30 66 86 Greatest Overweight (x) 4 | . 1 3 4 3 Average Overweight (x) . | . . . 1 1 Largest Inventory Capacity 25 | . 15 15 25 25 Average Capacity 16 | . 8 10 24 25 Most Carried 25 | . 10 15 25 25 Average Carried 15 | . 8 10 22 23 Final Capacity 25 | 8 10 15 25 25 Final Carried 25 | 6 10 15 25 22 Class Distribution -------------------- 64% | Mutant 31% | Scavenger-Mutant 4% | Scavenger-Gladiator Dominant Class ---------------- Scavenger-Mutant | -10/Materials Mutant | -9/Materials Mutant | -8/Materials Mutant | -7/Factory Resources | -11 -10 -9 -8 -7 ----------- Run | Yrd Mat Mat Mat Fac Matter Collected 1826 | 200 290 721 364 251 Remotely . | . . . . . Salvage Created 2149 | . 431 693 744 281 Parts 128 | . 27 45 32 24 Haulers Intercepted 3 | . 1 1 . 1 Recyclers Shooed 2 | . . 2 . . Parts Field Recycled . | . . . . . Retrieved Matter . | . . . . . Parts Self-Destructed . | . . . . . Prevented . | . . . . . Kills | -11 -10 -9 -8 -7 ------- Run | Yrd Mat Mat Mat Fac Combat Hostiles Destroyed 38 | . 7 13 12 6 Melee 9 | . . . 8 1 Guns 21 | . 7 13 1 . Cannons 3 | . . . . 3 AOE 3 | . . . 3 . Classes Destroyed 12 | . 7 1 1 3 Worker 7 | . 2 1 3 1 Builder 4 | . 1 . 2 1 Tunneler 1 | . . . 1 . Hauler 3 | . 1 1 . 1 Recycler 4 | . 1 2 1 . Watcher 2 | . 1 . 1 . Swarmer 8 | . 3 4 1 . Grunt 15 | . 4 4 6 1 Duelist 3 | . . . . 3 Sentry 10 | . . 5 5 . Hunter 1 | . . . . 1 Programmer 1 | . . . . 1 Best Kill Streak 8 | . 3 7 8 7 Combat Bots Only 6 | . 3 5 6 5 Max Kills in Single Turn 2 | . 1 1 2 1 Gunslinging . | . . . . . Exploded 1 | . . . 1 . Melee 1 | . . . 1 1 Uniques/NPCs Destroyed . | . . . . . Combat | -11 -10 -9 -8 -7 -------- Run | Yrd Mat Mat Mat Fac Hostile Shots Fired 336 | . 67 81 97 91 Missed 94 | . 21 24 27 22 Damage Taken 3461 | . 521 651 1051 1238 Core 472 | . 87 66 156 163 Absorbed by Shields . | . . . . . Core Remaining (%) 79 | 100 65 83 71 . Volleys Fired 156 | . 42 64 19 31 Largest 2 | . 2 2 1 1 Hottest 60 | . 60 43 33 48 Shots Fired 258 | . 84 124 19 31 Gun 222 | . 84 124 14 . Cannon 29 | . . . . 29 Launcher 5 | . . . 5 . Special 2 | . . . . 2 Kinetic 224 | . 57 124 14 29 Thermal 27 | . 27 . . . Explosive 5 | . . . 5 . Electromagnetic . | . . . . . Robot Hit Streak 13 | . 13 10 12 6 Robot Miss Streak 4 | . 4 3 1 3 Penetration Max . | . . . . . Secondary Targets 5 | . 3 2 . . Max Gunslinging Chain 1 | . 1 1 . . Shots Hit Robots 207 | . 53 84 44 26 Core Hits 90 | . 21 34 25 10 Critical Kills 1 | . 1 . . . Critical Parts Destroyed 2 | . 1 . . 1 Critical Strikes 9 | . 2 . 4 3 Destroy 2 | . 2 . . . Blast 1 | . . . . 1 Smash 1 | . . . . 1 Sever 5 | . . . 4 1 Melee Attacks 43 | . . 1 32 10 Impact 9 | . . . 3 6 Slashing 34 | . . 1 29 4 Piercing . | . . . . . Sneak Attacks 11 | . . . 9 2 Combat Hostiles . | . . . . . Follow-up Attacks 4 | . . . 3 1 Damage Inflicted 3754 | . 555 883 1508 808 Guns 1613 | . 555 883 175 . Cannons 468 | . . . . 468 Explosions 214 | . . . 214 . Melee 1459 | . . . 1119 340 Ramming . | . . . . . Kinetic 1873 | . 347 883 175 468 Thermal 208 | . 208 . . . Explosive 214 | . . . 214 . Electromagnetic . | . . . . . Impact 265 | . . . 79 186 Slashing 1194 | . . . 1040 154 Piercing . | . . . . . Highest Corruption . | . . . . . Average Corruption . | . . . . . Corruption Purged . | . . . . . Corruption Blocked . | . . . . . Overload Shots . | . . . . . Overflow Damage 149 | . . . 67 82 Projectiles . | . . . . . Explosions . | . . . . . Melee 149 | . . . 67 82 Knockbacks 8 | . . . 2 6 Impact 1 | . . . 1 . Kinetic 6 | . . . . 6 Secondary 1 | . . . 1 . Self-Inflicted Damage . | . . . . . Shots . | . . . . . Rammed . | . . . . . Targets Rammed . | . . . . . Kicked . | . . . . . Crushed . | . . . . . Highest Temperature 217 | . 157 217 9 37 Average Temperature 61 | . 59 66 6 19 Received Heat Transfer 1062 | . 258 201 423 180 Siege Activations . | . . . . . Robots Corrupted . | . . . . . Combat Hostiles . | . . . . . Parts Fried 3 | . . . . 3 Impact Corruptions 4 | . . . . 4 Robots Melted . | . . . . . Combat Hostiles . | . . . . . Parts Melted . | . . . . . Heat Transferred 475 | . 475 . . . Parts Sabotaged . | . . . . . Parts Stolen . | . . . . . Parts Stripped . | . . . . . Power Chain Reactions . | . . . . . Alert | -11 -10 -9 -8 -7 ------- Run | Yrd Mat Mat Mat Fac Peak Influence 414 | . 167 414 329 315 Initial 150 | . . 22 150 149 Average 181 | . 37 258 260 174 Maximum Alert Level 2 | . . 2 1 1 Low Security (%) 56 | . 100 24 29 78 Level 1 41 | . . 68 70 21 Level 2 1 | . . 6 . . Level 3 . | . . . . . Level 4 . | . . . . . Level 5 . | . . . . . High Security . | . . . . . Max Security . | . . . . . Squads Dispatched 7 | . 1 . 2 4 Investigation 2 | . . . . 2 Extermination 1 | . . . . 1 Reinforcement 3 | . 1 . 1 1 Assault . | . . . . . Garrison 1 | . . . 1 . Intercept . | . . . . . Searches Triggered . | . . . . . Construction Impeded . | . . . . . Haulers Reinforced . | . . . . . Active Scanning Responses . | . . . . . Cargo Convoy Interrupts . | . . . . . Stealth | -11 -10 -9 -8 -7 --------- Run | Yrd Mat Mat Mat Fac Distress Signals 5 | . . 2 2 1 Communications Jammed . | . . . . . Distress Signals . | . . . . . Times Spotted 62 | . 11 19 15 17 Peak Tracking Total 8 | . 5 8 7 7 Tactical Retreats 5 | . . 2 2 1 Traps | -11 -10 -9 -8 -7 ------- Run | Yrd Mat Mat Mat Fac Traps Triggered 2 | . . . 1 1 Indirectly . | . . . . . Trap Hack Attempts . | . . . . . Triggered . | . . . . . Disarmed . | . . . . . Reprogrammed . | . . . . . Reused . | . . . . . Traps Extracted . | . . . . . Installed . | . . . . . Triggered . | . . . . . Machines | -11 -10 -9 -8 -7 ---------- Run | Yrd Mat Mat Mat Fac Machines Disabled . | . . . . . Max in Single Turn . | . . . . . Machines Repaired . | . . . . . Machines Dismantled . | . . . . . Machines Sabotaged . | . . . . . Overloaded Fab Kills . | . . . . . Hacking | -11 -10 -9 -8 -7 --------- Run | Yrd Mat Mat Mat Fac Machines Accessed 23 | . 5 11 4 3 Terminals 19 | . 5 9 3 2 Fabricators . | . . . . . Repair Stations . | . . . . . Recycling Units 1 | . . 1 . . Scanalyzers 3 | . . 1 1 1 Garrison Access . | . . . . . Total Hacks 54 | . 14 27 5 8 Successful 24 | . 7 11 3 3 Failed 30 | . 7 16 2 5 Catastrophic 4 | . 2 . 1 1 Database Lockouts . | . . . . . Manual 22 | . 3 16 . 3 Terminals 47 | . 14 24 3 6 Fabricators . | . . . . . Repair Stations . | . . . . . Recycling Units 2 | . . 2 . . Scanalyzers 5 | . . 1 2 2 Garrison Access . | . . . . . Terminal Hacks 10 | . 4 5 1 . Part Schematic 1 | . . 1 . . Terminal Index 1 | . . 1 . . Locate Traps 4 | . 2 2 . . Hauler Manifests 2 | . . 1 1 . Zone Layout 2 | . 2 . . . Fabricator Hacks . | . . . . . Repair Station Hacks . | . . . . . Recycling Unit Hacks 2 | . . 2 . . Report Inventory 1 | . . 1 . . Retrieve Matter 1 | . . 1 . . Scanalyzer 4 | . . . 2 2 Insert Component 2 | . . . 1 1 Analyze 2 | . . . 1 1 Garrison Access Hacks . | . . . . . Unauthorized Hacks 8 | . 3 4 . 1 Terminals 8 | . 3 4 . 1 Track 1 | . 1 . . . Assimilate 1 | . . . . 1 Botnet 6 | . 2 4 . . Fabricators . | . . . . . Repair Stations . | . . . . . Recycling Units . | . . . . . Scanalyzers . | . . . . . Garrison Access . | . . . . . Data Cores Recovered . | . . . . . Used . | . . . . . Hacking Detections 17 | . 4 8 3 2 Full Trace Events 2 | . . 1 . 1 Feedback Events . | . . . . . Feedback Blocked . | . . . . . Robot Schematics Acquired . | . . . . . Robots Built . | . . . . . Authchips . | . . . . . Time . | . . . . . Total Robot Build Rating . | . . . . . Part Schematics Acquired 3 | . . 1 1 1 Parts Built . | . . . . . Authchips . | . . . . . Time . | . . . . . Total Part Build Rating . | . . . . . Parts Repaired . | . . . . . Time . | . . . . . Parts Recycled . | . . . . . Recycled Matter . | . . . . . Retrieved Matter . | . . . . . Retrieved Components . | . . . . . Parts Scanalyzed 2 | . . . 1 1 Part Schematics Acquired 2 | . . . 1 1 Parts Damaged . | . . . . . Bothacking | -11 -10 -9 -8 -7 ------------ Run | Yrd Mat Mat Mat Fac Used RIF Installer . | . . . . . Robots Hacked 2 | . . . . 2 Non-combat . | . . . . . Combat 2 | . . . . 2 Robot Hacks Applied 2 | . . . . 2 parse_system 2 | . . . . 2 Relay Couplers Released . | . . . . . Fabnet Peak Effective % . | . . . . . Robots Rewired . | . . . . . Allies Hacked . | . . . . . Hacks Repelled . | . . . . . Allies | -11 -10 -9 -8 -7 -------- Run | Yrd Mat Mat Mat Fac Total Allies 1 | . . . . 1 Largest Group 1 | . . . . 1 Highest-Rated Group 10 | . . . . 10 Highest-Rated Ally 10 | . . . . 10 Total Orders . | . . . . . Ally Attacks . | . . . . . Total Damage . | . . . . . Kills . | . . . . . Allies Corrupted . | . . . . . Allies Melted . | . . . . . Intel | -11 -10 -9 -8 -7 ------- Run | Yrd Mat Mat Mat Fac Robot Analysis Total . | . . . . . Derelict Logs Recovered . | . . . . . Drone Launches . | . . . . . Drone Recoveries . | . . . . . Exploration | -11 -10 -9 -8 -7 ------------- Run | Yrd Mat Mat Mat Fac Turns Passed 2573 | . 729 741 660 443 Spaces Moved 1318 | 1 420 421 246 230 Core . | . . . . . Treads 242 | . . . 197 45 Legs 725 | 1 420 304 . . Wheels 230 | . . . 45 185 Hover 121 | . . 117 4 . Flight . | . . . . . Fastest Speed 112 | 120 120 112 112 115 Average Speed 147 | 120 137 124 209 141 Slowest Speed 465 | 120 190 250 465 231 Overloaded Moves . | . . . . . Propulsion Burnouts . | . . . . . Robots Hopped . | . . . . . Cave-ins Triggered . | . . . . . Exploration Rate (%) 27 | 2 54 48 24 8 Regions Visited 4 Branch Regions . Pre-discovered Areas . | . . . . . Known Exits Taken . | . . . . . Unknown Exits Taken 4 | 1 1 1 1 . Scrap Searched . | . . . . . Spaces Dug 1 | . . 1 . . Terrain Destroyed 39 | . . 1 37 1 Melee 1 | . . 1 . . Projectile 1 | . . . . 1 AOE 37 | . . . 37 . Terrain Rammed . | . . . . . Walls Destroyed . | . . . . . Machines Disabled . | . . . . . Actions | -11 -10 -9 -8 -7 --------- Run | Yrd Mat Mat Mat Fac Total 1663 | . 498 535 328 302 Wait 23 | . 8 5 . 10 Move 1314 | . 419 420 245 230 Hop . | . . . . . Pick Up 43 | . 10 14 15 4 Fast Attach 15 | . 2 3 5 5 Attach 16 | . 1 2 6 7 Detach 5 | . 1 . 1 3 Swap 18 | . 5 9 3 1 Drop 36 | . 10 17 6 3 Fire 156 | . 42 64 19 31 Melee 37 | . . 1 28 8 Ram . | . . . . . Kick . | . . . . . Crush . | . . . . . Escape Stasis . | . . . . . Rewire . | . . . . . Trap . | . . . . . Miscellaneous . | . . . . . Route ------- -11/Scrapyard -10/Materials (discovered 2 exits: *Mat x2) -9/Materials (discovered 2 exits: *Mat / [*Min]) -8/Materials -7/Factory History --------- Turn | Location | Event 1 | -11/Scrapyard | Discovered new exit (range 0) 1 | -11/Scrapyard | Entered Materials 63 | -10/Materials | Discovered new exit (range 16) 311 | -10/Materials | Build established: Mutant 427 | -10/Materials | Discovered new exit (range 8) 601 | -10/Materials | Derelicts attacked the area 644 | -10/Materials | Build established: Scavenger-Mutant 730 | -10/Materials | Entered another Materials area 730 | -9/Materials | Evolved 2 slots: Propulsion x1, Utility x1 1013 | -9/Materials | Discovered new exit (range 7) 1296 | -9/Materials | Discovered new exit (range 16) 1471 | -9/Materials | Entered another Materials area 1471 | -8/Materials | Evolved 2 slots: Utility x1, Weapon x1 1531 | -8/Materials | Garrison activated, responded to threat 1595 | -8/Materials | Lost 3 parts (1n2u) 1678 | -8/Materials | Build established: Mutant 2070 | -8/Materials | Discovered new exit (range 13) 2131 | -8/Materials | Entered Factory 2131 | -7/Factory | Evolved 2 slots: Propulsion x1, Utility x1 2496 | -7/Factory | Lost 3 parts (2u1w) 2574 | -7/Factory | Self-destructed Last Messages --------------- 02523_ Jacked H-55 Commando... >>parse_system Reading system data... 02525_ Slug penetrates Wall. 02527_ Acquired 6 matter. 02528_ Penetrated by Slug. 02528_ Critical hit (Destroy). 02531_ Arm. Huge Wheel destroyed. 02535_ Slug penetrates Wall. 02549_ Triggered Alarm Trap. 02549_ An alarm sounds. 02549_ ALERT: Alarm triggered, dispatching investigation squad. 02565_ Slug penetrates Wall. 02565_ Lgt. Armor Plating destroyed. 02568_ Penetrated by Slug. 02569_ Acquired Med. Treads. 02571_ Penetrated by Slug. 02572_ Jacked G-47 Trooper... >>parse_system Reading system data... Map ----- +----------------------------------------------------+ | ?????????????????????????????????????????????????? | | ?????????????????????????????????????????????????? | | ?????????????????????????????????????????????????? | | ?????????????????????????????????????????????????? | | ?????????????????????????????????????????????????? | | ?????????????????????????????????????????????????? | | ?????????????????????????????????????????????????? | | ?????????????????????????????????????????????????? | | ?????????????????????????????????????????????????? | | ?????????????????????????????????????????????????? | | ?????????????????????????????????????????????????? | | ?????????????????????????????????????????????????? | | ?????????????????????????????????????????????????? | | ?????????????????????????????????????????????????? | | ?????????????????????????????????????????????????? | | ?????????????????????????????????????????????????? | | ?????????????????????????????????????????????????? | | ?????????????????????????????????????????????????? | | ?????????????????????????????????????????????????? | | ?????????????????????????????????????????????????? | | ?????????????????????????????????????????????????? | | ???## # ?????????? #???????????????? | | ???## # ??????????############???????????????? | | ???## # ??????????## ! ##???????????????? | | ???## # ??????????## ##???????????????? | | # ### # #### @ ##???????????????? | | #+### ############## """"##???????????????? | | # # # """"##???????????????? | | # # """"" # """"##???????????????? | | # % # """"" # """"##???????????????? | | # # """ ! # ! """"##???????????????? | | #%% # # """"##???????????????? | | """ #% ###+######+###! """"##???????????????? | | """ #% ### ### ##???????????????? | | """ # % ### ### ##???????????????? | | "" # %%! % ### ###g ##???????????????? | | "" " ### ### hgg ##???????????????? | | =#[ %! ### + ! ##???????????????? | | # %/!* ####### ##???????????????? | | ##+## =!* ##########+######???????????????? | | = !%! [ ???????????????? | | = *!% ?????????????????? | | = ! """"""" """""????????????????? | | = """"""" """"""???????????????? | | "" """" """"""???????????????? | | ############ = """"""" """"""" ?????????????? | | ####### ?????????????? | | ##???## ????????????? | | """ ##???## T ????????????? | | """ ####### " ???????????? | +----------------------------------------------------+ Best States ------------- Heat Dissipation 34 Energy Generation 16 Energy Capacity 290 Matter Stores 300 Matter Capacity 300 Sight Range 16 Terrain Scan Density 85 Armor Coverage 300 Evasion (%) 55 Melee Accuracy 6 Recoil Reduction 4 Item Schematics ----------------- Imp. Aluminum Leg | -9/Materials | Hacked Arm. Huge Wheel | -8/Materials | Scanalyzed Lgt. Armor Plating | -7/Factory | Scanalyzed Robot Schematics ------------------ None Fabricated ------------ Nothing Alien Tech Used ----------------- None Achievements -------------- None Challenges ------------ None Game ------ Seed ShockHypercooledPurifier Manual? 0 Play Time 00:29:28 Cumulative 120.7 hours Start 2024.04.18 @ 19:11:39 End 2024.04.18 @ 19:40:22 Sessions 1 Manual Loads 0 Difficulty Rogue Special Mode None Game No. 195 Rogue 191 Adventurer 0 Explorer 4 Win Type - Total 0 Types 0/0/0/0/0/0/0/0/0 Lore% 26 Gallery% 43 Achievement% 33 Wizard Run 0 Options --------- Layout 2 ASCII 0 Keyboard 1 Movement Arrows Keybinds 0 Fullscreen 1 Font 32/SmallcapsGlow Map View 130x44 Zoom Use 0% Tactical HUD 1 Map Filters NONE Filters NONE Steam 1 RUN: bea42a1a-a52b-47a6-a872-d156efb846fb